bitfinex/quotes_SOLUSD_20250316
["timestamp","ask_amount","ask_price","bid_price","bid_amount"]
[1742150690878,16.5995787,129.61,129.56,35.28162756]
[1742150691187,16.5995787,129.61,129.56,29.10692756]
[1742150691389,16.5995787,129.61,129.56,35.28152756]
[1742150692205,6.235,129.62,129.57,10.4272787]
[1742150692387,6.235,129.62,129.59,18.64964886]
[1742150694381,6.235,129.62,129.58,18.64964886]
[1742150694581,16.6622787,129.62,129.58,18.64964886]
[1742150695390,16.6622787,129.62,129.56,35.28142756]
[1742150695697,16.6622787,129.62,129.57,18.64964886]
[1742150695898,10.4272787,129.61,129.57,18.64964886]
[1742150696212,10.4272787,129.61,129.56,18.67964886]
[1742150696506,6.1728,129.6,129.56,18.67964886]
[1742150696708,16.6000787,129.6,129.56,18.67964886]
[1742150697413,10.4272787,129.61,129.56,29.10692756]
[1742150697607,10.4272787,129.6,129.56,18.67964886]
[1742150698616,6.1733,129.59,129.56,18.67964886]
[1742150700616,16.6005787,129.59,129.56,0.03]
[1742150700920,10.4272787,129.57,129.56,0.03]
[1742150703018,16.6014787,129.57,129.56,0.03]
[1742150712793,16.6014787,129.57,129.56,0.0001]
[1742150723623,16.6014787,129.57,129.55,0.0001]
[1742150723823,10.4272787,129.56,129.55,0.0001]
[1742150725228,16.6019787,129.56,129.55,0.0001]
[1742150725407,58.59541664,129.56,129.55,0.0001]
[1742150725820,16.88630184,129.56,129.55,0.0001]
[1742150731539,20.0,129.54,129.53,0.0001]
[1742150731835,0.28432314,129.53,129.49,0.03]
[1742150732131,16.6048787,129.5,129.49,0.03]
[1742150734525,15.4421,129.52,129.49,0.03]
[1742150734526,6.1773,129.51,129.49,0.03]
[1742150734717,6.1773,129.51,129.49,18.67964886]
[1742150735022,16.6045787,129.51,129.49,18.67964886]
[1742150736111,10.4272787,129.5,129.49,0.03]
[1742150738021,16.6048787,129.5,129.49,0.03]
[1742150744938,16.6678787,129.5,129.49,0.03]
[1742150745847,16.6678787,129.5,129.49,0.0001]
[1742150754339,27.0951574,129.5,129.48,0.0001]
[1742150754662,52.42071664,129.49,129.48,0.0001]
[1742150755129,52.42071664,129.49,129.47,0.0001]
[1742150755333,72.1363935,129.48,129.47,0.0001]
[1742150755838,72.27855507,129.48,129.44,0.03]
[1742150756165,10.4272787,129.45,129.44,0.03]
[1742150756342,16.6071787,129.45,129.44,0.03]
[1742150757029,16.6071787,129.45,129.44,0.0001]
[1742150757648,20.0,129.42,129.39,1.617]
[1742150757844,10.4272787,129.4,129.39,1.617]
[1742150758049,10.4272787,129.4,129.38,18.64964886]
[1742150758260,6.1828,129.39,129.38,18.64964886]
[1742150759241,16.6100787,129.39,129.38,18.64964886]
[1742150759430,16.6097787,129.4,129.38,18.64964886]
[1742150760078,16.6097787,129.4,129.37,6.2174]
[1742150760079,10.4272787,129.39,129.37,6.2174]
[1742150760264,16.6100787,129.39,129.38,18.64964886]
[1742150760449,16.6100787,129.39,129.37,6.2174]
[1742150760653,10.4272787,129.38,129.37,6.2174]
[1742150762464,10.4272787,129.39,129.37,6.2174]
[1742150763061,10.4272787,129.39,129.37,24.86704886]
[1742150763249,6.1825,129.4,129.37,24.86704886]
[1742150763250,20.0,129.38,129.37,24.86704886]
[1742150764865,20.0,129.38,129.37,6.2174]
[1742150765370,36.6105787,129.38,129.37,6.2174]
[1742150766569,36.6105787,129.38,129.36,1.647]
[1742150767264,16.6102787,129.39,129.36,1.647]
[1742150767463,16.6102787,129.39,129.37,0.03]
[1742150768048,10.4272787,129.38,129.37,0.03]
[1742150768861,16.6105787,129.38,129.37,0.03]
[1742150769064,36.6105787,129.38,129.37,0.03]
[1742150769482,20.14216157,129.36,129.35,2.4723233]
[1742150769771,79.20071664,129.36,129.35,2.33e-05]
[1742150770972,85.38491664,129.36,129.35,2.33e-05]
[1742150771276,43.53364027,129.36,129.35,2.33e-05]
[1742150772251,1.93442314,129.35,129.24,1.6891]
[1742150772455,10.4272787,129.28,129.24,7.879]
[1742150772658,10.4272787,129.29,129.24,12.1163787]
[1742150772864,10.4272787,129.29,129.25,18.64964886]
[1742150773353,17.2072787,129.3,129.25,29.07692756]
[1742150773563,6.78,129.3,129.26,10.4272787]
[1742150773759,6.78,129.3,129.28,18.64964886]
[1742150773967,16.6139787,129.31,129.28,18.64964886]
[1742150774270,10.4272787,129.3,129.25,29.07692756]
[1742150774776,16.6135787,129.32,129.27,10.4272787]
[1742150774972,16.6135787,129.32,129.24,1.6891]
[1742150774973,10.4272787,129.29,129.24,1.6891]
[1742150775150,26.1872,129.3,129.25,29.07692756]
[1742150775344,20.0,129.3,129.28,18.64964886]
[1742150775566,16.6135787,129.32,129.28,24.95654886]
[1742150775761,10.4272787,129.31,129.28,24.95654886]
[1742150775953,10.4272787,129.3,129.28,24.95654886]
[1742150776159,20.0,129.26,129.24,0.03]
[1742150776364,6.78,129.25,129.24,0.03]
[1742150776566,17.2072787,129.25,129.24,0.03]
[1742150777165,29.3600082,129.25,129.24,0.03]
[1742150777595,29.50216977,129.25,129.24,0.03]
[1742150778870,29.3600082,129.25,129.24,0.03]
[1742150780092,23.1705082,129.25,129.24,0.03]
[1742150780275,12.9683,129.28,129.24,0.03]
[1742150780580,16.3905082,129.28,129.24,0.03]
[1742150780754,29.3583082,129.29,129.24,35.07015706]
[1742150780950,23.1705082,129.29,129.24,35.07015706]
[1742150781255,29.3582082,129.29,129.25,6.3069]
[1742150781467,16.3905082,129.28,129.25,6.3069]
[1742150781863,16.3905082,129.28,129.24,35.07015706]
[1742150781864,36.3905082,129.26,129.24,0.03]
[1742150782089,16.3905082,129.25,129.24,0.03]
[1742150782786,36.3905082,129.26,129.24,0.03]
[1742150783088,16.3905082,129.25,129.24,0.03]
[1742150783287,22.5800082,129.25,129.24,0.03]
[1742150784789,42.5800082,129.25,129.24,0.03]
[1742150786471,36.3905082,129.25,129.24,0.03]
[1742150786782,42.5800082,129.25,129.24,0.03]
[1742150787286,36.3905082,129.25,129.24,0.03]
[1742150787466,42.5800082,129.25,129.24,0.03]
[1742150789380,36.3905082,129.25,129.24,0.03]
[1742150789567,42.5800082,129.25,129.24,0.03]
[1742150789967,20.0,129.25,129.24,0.03]
[1742150790164,26.1895,129.25,129.24,0.03]
[1742150790361,42.5800082,129.25,129.24,0.03]
[1742150790895,42.72216977,129.25,129.24,0.03]
[1742150793700,42.72216977,129.25,129.18,6.5691]
[1742150793701,16.3905082,129.21,129.18,6.5691]
[1742150795176,16.3905082,129.19,129.18,6.5691]
[1742150795688,20.0,129.16,129.11,0.03]
[1742150795873,20.0,129.16,129.12,16.3905082]
[1742150796184,16.3905082,129.18,129.13,35.04015706]
[1742150797169,16.3905082,129.16,129.11,0.03]
[1742150797503,16.3905082,129.14,129.11,0.03]
[1742150797669,36.3905082,129.15,129.11,0.03]
[1742150797874,42.5849082,129.15,129.11,18.67964886]
[1742150799196,36.3905082,129.15,129.11,18.67964886]
[1742150799896,36.3905082,129.15,129.11,0.03]
[1742150799897,16.3905082,129.12,129.11,0.03]
[1742150800147,16.53266977,129.12,129.11,0.03]
[1742150800793,16.3905082,129.12,129.11,0.03]
[1742150800997,16.3905082,129.14,129.11,0.03]
[1742150801175,6.1943,129.15,129.11,0.03]
[1742150801369,16.3905082,129.13,129.11,0.03]
[1742150801570,6.1943,129.15,129.11,0.03]
[1742150801571,16.3905082,129.12,129.11,0.03]
[1742150802190,22.5862082,129.12,129.11,0.03]
[1742150803078,38.9767164,129.12,129.11,0.03]
[1742150803277,22.5862082,129.12,129.11,0.03]
[1742150803576,22.72836977,129.12,129.11,0.03]
[1742150804027,22.5862082,129.12,129.11,0.03]
[1742150805319,22.72836977,129.12,129.11,0.03]
[1742150805895,22.5862082,129.12,129.11,0.03]
[1742150806199,22.72836977,129.12,129.11,0.03]
[1742150806840,20.14216157,129.1,129.09,2.7021377]
[1742150807128,43.37266977,129.1,129.09,2.7021377]
[1742150807492,43.2305082,129.1,129.09,2.7021377]
[1742150807692,49.4272082,129.1,129.09,2.7021377]
[1742150807913,43.2305082,129.1,129.09,2.7021377]
[1742150808110,22.5864082,129.12,129.09,2.7021377]
[1742150808308,16.3905082,129.11,129.09,2.7021377]
[1742150808614,16.3905082,129.11,129.09,2.2021377]
[1742150809912,22.5871082,129.11,129.09,2.2021377]
[1742150810495,16.3905082,129.1,129.09,2.2021377]
[1742150810694,22.5871082,129.11,129.09,2.2021377]
[1742150811397,16.3905082,129.1,129.09,2.2021377]
[1742150811923,22.5872082,129.1,129.09,2.2021377]
[1742150812602,22.5869082,129.11,129.09,2.2021377]
[1742150813005,6.1964,129.11,129.09,2.2021377]
[1742150813209,22.5864082,129.12,129.09,2.2021377]
[1742150813614,6.1959,129.12,129.09,2.2021377]
[1742150813796,16.3905082,129.11,129.09,2.2021377]
[1742150814317,22.5868082,129.11,129.09,2.2321377]
[1742150814722,0.063,129.12,129.09,2.2321377]
[1742150814910,0.063,129.12,129.09,24.8198459]
[1742150815215,0.063,129.12,129.1,17.9263082]
[1742150815622,0.063,129.12,129.1,1.5358]
[1742150816416,0.063,129.12,129.1,7.7324]
[1742150817508,0.063,129.12,129.1,24.1229082]
[1742150818123,0.063,129.12,129.1,7.7324]
[1742150818719,0.063,129.12,129.1,1.5358]
[1742150820318,0.063,129.12,129.11,18.64964886]
[1742150820519,0.063,129.12,129.11,35.04015706]
[1742150820720,0.063,129.12,129.11,41.23635706]
[1742150822648,16.3905082,129.18,129.11,62.77355706]
[1742150822810,16.3905082,129.17,129.11,30.89244886]
[1742150823127,16.3905082,129.16,129.11,47.28295706]
[1742150824330,22.5843082,129.16,129.11,47.28295706]
[1742150824930,22.5843082,129.16,129.11,30.89244886]
[1742150825117,22.5843082,129.16,129.11,47.28295706]
[1742150825811,16.3905082,129.16,129.12,16.3905082]
[1742150826006,16.3905082,129.16,129.11,47.28295706]
[1742150826430,16.3905082,129.16,129.11,30.89244886]
[1742150826628,16.3905082,129.15,129.11,24.69624886]
[1742150826827,16.3905082,129.16,129.11,47.28285706]
[1742150827128,16.3905082,129.17,129.12,16.3905082]
[1742150827321,16.3905082,129.16,129.12,16.3905082]
[1742150827507,16.3905082,129.16,129.11,47.28285706]
[1742150829425,0.063,129.18,129.14,16.3905082]
[1742150829729,16.4535082,129.18,129.13,16.3905082]
[1742150829923,16.3905082,129.17,129.12,35.04015706]
[1742150830152,16.3905082,129.17,129.13,6.1953]
[1742150830333,22.5839082,129.17,129.12,41.23565706]
[1742150830516,16.3905082,129.16,129.12,24.84514886]
[1742150830721,22.5839082,129.17,129.12,41.23565706]
[1742150831820,22.5839082,129.17,129.12,18.64964886]
[1742150832022,6.1934,129.17,129.1,1.5358]
[1742150832214,16.3905082,129.13,129.1,1.5358]
[1742150833132,6.82,129.16,129.11,18.64964886]
[1742150833334,23.2105082,129.16,129.11,35.04015706]
[1742150833830,22.5849082,129.15,129.11,18.64964886]
[1742150834028,22.5849082,129.15,129.11,35.04015706]
[1742150834216,22.5849082,129.15,129.1,7.7324]
[1742150834217,16.3905082,129.14,129.1,1.5358]
[1742150834616,16.3905082,129.13,129.1,1.5358]
[1742150835017,16.3905082,129.14,129.1,1.5358]
[1742150836029,29.4046082,129.16,129.11,35.04015706]
[1742150836340,22.5841082,129.17,129.12,16.3905082]
[1742150836719,16.3905082,129.16,129.11,35.04015706]
[1742150836919,22.5841082,129.17,129.12,16.3905082]
[1742150837114,22.5841082,129.17,129.12,22.5860082]
[1742150841827,22.5848082,129.15,129.12,0.03]
[1742150842856,22.3038,129.17,129.12,0.03]
[1742150842857,16.3905082,129.16,129.12,0.03]
[1742150843146,23.2105082,129.17,129.12,16.4205082]
[1742150843345,22.5840082,129.17,129.13,6.1953]
[1742150843726,0.063,129.18,129.14,18.64964886]
[1742150843727,22.6466082,129.18,129.14,18.64964886]
[1742150844052,0.063,129.18,129.15,22.7934082]
[1742150844221,0.063,129.18,129.15,6.4029]
[1742150845121,6.2559,129.18,129.15,6.4029]
[1742150845541,0.063,129.18,129.15,24.4168082]
[1742150845840,0.063,129.18,129.16,16.3905082]
[1742150847347,0.063,129.18,129.16,18.64964886]
[1742150847653,0.063,129.18,129.16,35.04015706]
[1742150848936,0.063,129.18,129.17,16.3905082]
[1742150850454,0.063,129.18,129.15,8.0263]
[1742150850455,16.4535082,129.18,129.15,8.0263]
[1742150850752,16.3905082,129.17,129.13,18.64964886]
[1742150850925,16.4535082,129.18,129.14,18.64964886]
[1742150851838,22.6468082,129.18,129.14,18.64964886]
[1742150852239,22.6468082,129.18,129.14,35.04015706]
[1742150853458,0.063,129.18,129.15,16.3905082]
[1742150853832,0.063,129.18,129.14,41.23495706]
[1742150854150,0.063,129.18,129.14,35.04015706]
[1742150854453,16.3905082,129.17,129.13,18.64964886]
[1742150855128,16.3905082,129.17,129.14,18.64964886]
[1742150855320,0.063,129.18,129.14,35.04015706]
[1742150855624,0.063,129.18,129.14,41.23465706]
[1742150855824,16.4535082,129.18,129.14,24.84414886]
[1742150856552,0.063,129.18,129.14,41.23465706]
[1742150859149,0.063,129.18,129.14,35.04015706]
[1742150859447,16.4535082,129.18,129.14,18.64964886]
[1742150860347,16.4535082,129.18,129.14,24.84424886]
[1742150861142,22.6467082,129.18,129.14,18.64964886]
[1742150861451,16.4535082,129.18,129.14,24.84434886]
[1742150861636,0.063,129.18,129.14,41.23485706]
[1742150863134,0.063,129.18,129.15,16.3905082]
[1742150863353,0.063,129.18,129.15,22.5847082]
[1742150863940,0.063,129.18,129.17,35.04015706]
[1742150864348,0.063,129.18,129.17,18.64964886]
[1742150864834,0.063,129.18,129.17,35.04015706]
[1742150865239,0.063,129.18,129.17,18.64964886]
[1742150866154,0.063,129.18,129.15,35.04015706]
[1742150866834,0.063,129.18,129.16,16.3905082]
[1742150867249,0.063,129.18,129.17,16.3905082]
[1742150867450,0.063,129.18,129.17,17.9985082]
[1742150867666,0.063,129.18,129.17,42.84145706]
[1742150868540,0.063,129.18,129.17,42.98361863]
[1742150869639,0.063,129.18,129.17,18.64964886]
[1742150870347,0.063,129.18,129.17,43.1257802]
[1742150870538,0.063,129.18,129.17,59.5162884]
[1742150871775,0.063,129.18,129.17,60.67689771]
[1742150872146,0.063,129.24,129.19,0.14216157]
[1742150872348,0.063,129.24,129.23,35.04015706]
[1742150873767,0.063,129.24,129.23,18.64964886]
[1742150875049,0.063,129.24,129.22,18.64964886]
[1742150877154,0.063,129.24,129.22,35.04015706]
[1742150878080,0.063,129.24,129.22,18.64964886]
[1742150880280,0.063,129.24,129.23,35.04015706]
[1742150881575,0.063,129.24,129.2,35.04015706]
[1742150882478,0.063,129.24,129.22,18.64964886]
[1742150884577,0.063,129.24,129.19,14.6166]
[1742150884763,16.3905082,129.23,129.2,18.64964886]
[1742150884958,16.3905082,129.22,129.17,16.3905082]
[1742150885160,16.3905082,129.21,129.17,18.64964886]
[1742150885959,16.3905082,129.21,129.17,35.04015706]
[1742150886262,6.1919,129.2,129.17,35.04015706]
[1742150886579,6.1919,129.2,129.17,18.64964886]
[1742150887383,22.5822082,129.21,129.17,16.3905082]
[1742150887564,16.3905082,129.22,129.18,16.3905082]
[1742150888272,42.5816082,129.22,129.17,16.3905082]
[1742150888448,42.5816082,129.22,129.18,16.3905082]
[1742150891666,6.1924,129.19,129.16,18.67964886]
[1742150893562,6.1924,129.19,129.16,35.07015706]
[1742150894180,22.5826082,129.2,129.16,35.07015706]
[1742150894378,6.1921,129.2,129.16,41.26385706]
[1742150894682,6.1921,129.2,129.16,35.07015706]
[1742150896770,22.5826082,129.2,129.16,0.03]
[1742150897084,22.5826082,129.2,129.16,18.67964886]
[1742150897085,16.3905082,129.19,129.16,18.67964886]
[1742150897487,16.3905082,129.19,129.16,0.03]
[1742150898886,6.1929,129.18,129.16,0.03]
[1742150899088,16.3905082,129.18,129.16,0.03]
[1742150899265,22.5831082,129.19,129.16,0.03]
[1742150899889,16.3905082,129.18,129.16,0.03]
[1742150901066,22.5838082,129.18,129.16,0.03]
[1742150902979,16.3905082,129.17,129.16,0.03]
[1742150903176,18.38680513,129.17,129.16,0.03]
[1742150903376,20.0,129.14,129.12,0.03]
[1742150903580,30.50444356,129.13,129.12,0.03]
[1742150905082,42.61563663,129.13,129.12,0.03]
[1742150905987,36.42033663,129.13,129.12,0.03]
[1742150906181,20.0,129.13,129.12,0.03]
[1742150906386,36.42033663,129.13,129.12,0.03]
[1742150906572,42.61563663,129.13,129.12,0.03]
[1742150912487,42.7577982,129.13,129.12,0.03]
[1742150914394,42.61563663,129.13,129.12,0.03]
[1742150920388,22.61523663,129.14,129.12,0.03]
[1742150920593,16.42033663,129.15,129.12,0.03]
[1742150920890,36.42033663,129.13,129.12,0.03]
[1742150921078,42.61563663,129.13,129.12,0.03]
[1742150922697,42.40900143,129.13,129.12,0.03]
[1742150922896,42.61563663,129.13,129.12,0.03]
[1742150923983,42.51563663,129.13,129.12,0.03]
[1742150927172,42.51563663,129.13,129.12,0.0001]
[1742150927173,78.94970269,129.13,129.12,0.0001]
[1742150927383,78.94970269,129.13,129.09,2.2321377]
[1742150927384,10.51401591,129.1,129.09,2.2321377]
[1742150927585,17.31401591,129.1,129.09,2.2321377]
[1742150928684,23.65287748,129.1,129.09,3.77e-05]
[1742150928894,23.65287748,129.1,128.99,1.6351]
[1742150928895,20.0,129.07,128.99,1.6351]
[1742150929079,10.51401591,129.05,128.99,1.6351]
[1742150929279,17.31401591,129.05,128.99,1.6351]
[1742150930681,6.8,129.05,129.01,16.71501591]
[1742150931492,30.51401591,129.07,129.02,29.16366477]
[1742150932576,10.51401591,129.06,129.0,6.2015]
[1742150932776,10.51401591,129.05,129.0,29.16366477]
[1742150933180,6.1987,129.06,129.0,35.08857168]
[1742150933480,16.43892282,129.05,129.0,35.08857168]
[1742150934383,16.43892282,129.05,129.01,16.43892282]
[1742150934902,16.43892282,129.05,129.0,41.28987168]
[1742150935489,16.43892282,129.05,129.01,18.64964886]
[1742150935795,16.43892282,129.06,129.01,35.08857168]
[1742150936097,16.43892282,129.05,128.99,24.27582282]
[1742150936402,16.43892282,129.05,128.99,7.8369]
[1742150937197,22.63802282,129.05,128.99,7.8369]
[1742150937891,16.43892282,129.05,129.0,18.64964886]
[1742150938091,16.43892282,129.05,129.0,35.08857168]
[1742150939101,20.0,129.05,129.01,16.43892282]
[1742150939398,6.8,129.09,129.04,22.88492282]
[1742150939577,16.43892282,129.08,129.04,6.446]
[1742150939781,16.43892282,129.07,129.04,6.446]
[1742150939986,16.43892282,129.06,129.04,0.03]
[1742150941384,22.63772282,129.06,129.04,0.03]
[1742150941595,16.43892282,129.06,129.04,0.03]
[1742150941904,16.43892282,129.05,129.04,0.03]
[1742150942487,16.43892282,129.06,129.04,0.03]
[1742150942894,20.0,129.05,129.04,0.03]
[1742150943506,16.43892282,129.05,129.04,0.03]
[1742150943806,22.63802282,129.05,129.04,0.03]
[1742150944383,42.63762282,129.06,129.04,0.03]
[1742150946482,20.0,129.06,129.04,0.03]
[1742150946688,16.43892282,129.07,129.04,0.03]
[1742150947608,16.43892282,129.06,129.04,0.03]
[1742150948108,6.1991,129.05,129.04,0.03]
[1742150949212,6.1988,129.06,129.04,0.03]
[1742150950194,22.63722282,129.07,129.04,0.03]
[1742150950392,16.43892282,129.09,129.04,1.635]
[1742150950604,16.43892282,129.09,129.04,18.07392282]
[1742150951398,22.63632282,129.09,129.04,18.07392282]
[1742150952308,22.63632282,129.09,129.04,24.27342282]
[1742150952902,6.1974,129.09,129.04,24.27342282]
[1742150953315,22.63632282,129.09,129.04,24.27342282]
[1742150953812,16.43892282,129.08,129.04,1.635]
[1742150954116,16.43892282,129.07,129.04,1.635]
[1742150954317,16.43892282,129.05,129.04,0.03]
[1742150954817,16.43892282,129.06,129.04,0.03]
[1742150955725,6.1991,129.05,129.04,0.03]
[1742150956497,22.63772282,129.06,129.04,0.03]
[1742150956703,6.1988,129.06,129.04,0.03]
[1742150957427,22.63772282,129.06,129.04,0.03]
[1742150960594,16.43892282,129.05,129.04,0.03]
[1742150961202,10.52123238,129.05,129.04,0.03]
[1742150962123,16.72033238,129.05,129.04,0.03]
[1742150964799,16.72033238,129.05,129.03,0.03]
[1742150965004,10.52123238,129.04,129.03,0.03]
[1742150965313,10.52123238,129.04,129.0,1.605]
[1742150965513,10.52123238,129.03,129.0,1.605]
[1742150965715,10.52123238,129.02,129.0,1.605]
[1742150965910,10.52123238,129.01,128.98,6.1924]
[1742150967427,16.72273238,129.0,128.97,1.6512]
[1742150967925,10.52123238,128.99,128.97,1.6512]
[1742150968124,16.72273238,129.0,128.96,10.52123238]
[1742150968424,6.2015,129.0,128.96,10.52123238]
[1742150968621,16.72273238,129.0,128.96,4.33063238]
[1742150969124,6.2015,129.0,128.96,4.33063238]
[1742150969329,6.2015,129.0,128.96,10.52123238]
[1742150972718,6.2015,129.0,128.96,29.17088124]
[1742150973041,16.72273238,129.0,128.96,18.64964886]
[1742150973244,10.52123238,128.98,128.94,1.6512]
[1742150973537,6.2034,128.96,128.92,35.54798124]
[1742150973911,10.52123238,128.98,128.93,29.17088124]
[1742150974323,16.72373238,128.98,128.93,29.17088124]
[1742150975428,16.72373238,128.98,128.93,18.64964886]
[1742150975625,16.72373238,128.98,128.93,29.17088124]
[1742150975929,16.72373238,128.98,128.93,24.85444886]
[1742150976114,16.72373238,128.98,128.94,10.52123238]
[1742150976314,6.202,128.99,128.95,10.52123238]
[1742150976820,16.72323238,128.99,128.93,24.85444886]
[1742150977029,16.72323238,128.99,128.95,10.52123238]
[1742150977212,10.52123238,129.01,128.96,10.52123238]
[1742150977419,10.52123238,129.0,128.96,10.52123238]
[1742150977631,10.52123238,129.0,128.95,29.17088124]
[1742150978019,10.52123238,129.0,128.95,35.37468124]
[1742150978632,16.72243238,129.01,128.97,10.52123238]
[1742150979427,16.72243238,129.01,128.96,10.52123238]
[1742150979632,16.72243238,129.01,128.96,16.72463238]
[1742150980748,6.2012,129.01,128.97,16.72403238]
[1742150980949,23.62193238,129.02,128.98,10.52123238]
[1742150981241,23.62193238,129.02,128.97,16.72403238]
[1742150981543,23.62193238,129.02,128.98,35.54798124]
[1742150981544,6.2007,129.02,128.98,35.54798124]
[1742150981719,16.72143238,129.03,128.99,10.52123238]
[1742150982133,16.72143238,129.03,128.98,35.54798124]
[1742150982549,10.52123238,129.02,128.98,35.54798124]
[1742150982848,16.72203238,129.02,128.98,35.54798124]
[1742150984222,6.2008,129.02,128.98,35.54798124]
[1742150984525,16.72143238,129.03,128.98,41.75038124]
[1742150984946,16.72143238,129.03,128.98,35.54798124]
[1742150986842,16.72143238,129.03,128.99,10.52123238]
[1742150987927,6.2002,129.03,129.0,29.17088124]
[1742150988128,6.2002,129.03,129.0,18.64964886]
[1742150989157,10.52123238,129.04,129.0,18.64964886]
[1742150989158,6.1996,129.04,129.0,18.64964886]
[1742150989326,16.72083238,129.04,129.0,18.64964886]
[1742150990336,13.0586,129.06,129.01,10.52123238]
[1742150990657,16.71983238,129.06,129.01,10.52123238]
[1742150991353,16.71983238,129.06,129.01,16.72213238]
[1742150993551,16.71983238,129.06,129.02,29.17088124]
[1742150993552,6.1986,129.06,129.02,29.17088124]
[1742150993853,16.71983238,129.06,129.02,29.17088124]
[1742150994061,16.71983238,129.06,129.02,18.64964886]
[1742150995457,6.1986,129.06,129.02,29.17088124]
[1742150996029,6.1986,129.06,129.02,35.37138124]
[1742150996255,6.1986,129.06,129.03,10.52123238]
[1742150998449,6.1986,129.06,129.02,29.17088124]
[1742151001339,12.23893238,129.09,129.04,10.52123238]
[1742151001543,0.063,129.09,129.05,10.52123238]
[1742151002146,0.063,129.09,129.06,10.52123238]
[1742151002331,0.063,129.09,129.07,10.52123238]
[1742151002652,0.063,129.09,129.06,10.52123238]
[1742151002835,16.78153238,129.09,129.04,12.07023238]
[1742151003037,10.52123238,129.08,129.03,10.52123238]
[1742151003242,6.1981,129.07,129.03,10.52123238]
[1742151004337,6.1981,129.07,129.04,10.52123238]
[1742151004537,6.1981,129.07,129.03,10.52123238]
[1742151004751,6.1981,129.07,129.04,10.52123238]
[1742151004951,6.2604,129.09,129.05,10.52123238]
[1742151006540,6.2604,129.09,129.06,29.17088124]
[1742151007665,0.063,129.09,129.06,10.52123238]
[1742151008345,0.063,129.09,129.05,29.17088124]
[1742151009056,10.52123238,129.06,129.02,18.64964886]
[1742151009258,10.52123238,129.05,129.0,17.13583238]
[1742151009563,6.1996,129.04,129.01,18.64964886]
[1742151012351,10.52123238,129.03,128.99,18.64964886]
[1742151012670,21.6986,129.04,128.99,18.64964886]
[1742151012671,10.52123238,129.02,128.99,18.64964886]
[1742151013162,16.44510284,129.02,128.98,16.44510284]
[1742151013368,16.44510284,129.02,128.98,18.64964886]
[1742151013565,22.64610284,129.01,128.96,16.47510284]
[1742151013761,16.44510284,129.0,128.96,18.67964886]
[1742151015664,6.2025,128.98,128.96,18.67964886]
[1742151016847,6.2022,128.99,128.96,35.1247517]
[1742151017069,14.6233,129.02,128.98,16.44510284]
[1742151017872,31.06840284,129.02,128.97,16.44510284]
[1742151018543,16.44510284,129.01,128.97,16.44510284]
[1742151019763,31.06840284,129.02,128.97,16.44510284]
[1742151019951,13.0008,129.02,128.98,16.44510284]
[1742151020765,6.2001,129.04,128.99,35.0947517]
[1742151020972,6.1993,129.05,129.01,16.44510284]
[1742151021271,6.1993,129.05,129.02,16.44510284]
[1742151021646,6.1993,129.05,128.99,18.79181043]
[1742151021846,6.1993,129.05,129.01,16.44510284]
[1742151023966,6.1988,129.06,129.02,16.44510284]
[1742151024174,6.1988,129.06,129.02,35.0947517]
[1742151024550,6.8,129.08,129.04,16.44510284]
[1742151024755,0.063,129.09,129.05,16.44510284]
[1742151025294,0.063,129.09,129.07,16.44510284]
[1742151025455,0.063,129.09,129.08,16.44510284]
[1742151025650,0.063,129.09,129.07,16.44510284]
[1742151027151,0.063,129.09,129.08,35.0947517]
[1742151027752,0.063,129.09,129.08,35.23691327]
[1742151028175,0.063,129.09,129.08,117.34054999]
[1742151028759,0.063,129.09,129.08,125.47794999]
[1742151028963,0.063,129.09,129.08,131.67564999]
[1742151029362,0.063,129.09,129.08,130.51417484]
[1742151030774,0.063,129.12,129.08,146.00837484]
[1742151030973,0.063,129.12,129.11,57.87821611]
[1742151031175,0.063,129.12,129.11,48.1109517]
[1742151031359,0.063,129.12,129.11,48.25311327]
[1742151032067,0.063,129.12,129.11,41.9147517]
[1742151032873,0.063,129.12,129.11,48.25311327]
[1742151033268,0.063,129.12,129.11,48.39527484]
[1742151033659,0.063,129.12,129.11,49.5564766]
[1742151033862,0.063,129.12,129.11,48.25311327]
[1742151035783,0.063,129.12,129.11,42.05691327]